[Event "Romanian Team Blitz Open 2022"]
[Site "Sebes"]
[Date "2022.12.04"]
[Round "3.9"]
[White "Ardelean, George-Catalin"]
[Black "Patrascu, Catalin-Lucian"]
[Result "1-0"]
[ECO "A45"]
[WhiteElo "2473"]
[BlackElo "2279"]
[Annotator "TA"]
[PlyCount "56"]
[EventDate "2022.12.04"]
[EventType "blitz"]
[EventCountry "ROU"]
[SourceTitle "playchess.com"]
[Source "ChessBase"]
[SourceQuality "1"]
[TimeControl "180+2"]

{[%evp 9,56,12,22,16,44,40,42,17,17,-32,-21,-19,-22,-27,-12,-15,-1,-35,-32,-77,-69,-77,-57,-63,-67,-67,-60,-80,-76,-120,-100,-105,-13,-6,-14,-54,0,0,0,0,0,0,0,-33,-24,-35,-17,-37,-9]} 1. d4 {[%emt 0:00:02]} Nf6 {[%emt 0:00:01]} 2. Bf4 {[%emt 0:00:01]} e6 {[%emt 0:00:03]} 3. e3 {[%emt 0:00:01]} b6 {[%emt 0:00:02]} 4. Qf3 {[%emt 0:00:00]} Nc6 {[%emt 0:00:07]} 5. Nc3 {[%emt 0:00:03]} Bb7 {[%emt 0:00:02]} 6. O-O-O {[%emt 0:00:06] A45: Trompowsky Attack.} Bb4 {[%emt 0:00:22]} 7. Nge2 {[%emt 0:00:01] [#]} Qe7 $146 {[%emt 0:00:07]} ({Predecessor:} 7... O-O 8. a3 Na5 9. e4 Be7 10. d5 Re8 11. Nd4 c5 12. Ndb5 exd5 13. Nxd5 Bxd5 14. exd5 {1-0 (71) Praggnanandhaa,R (2608)-Martinez Alcantara,J (2620) Chess.com INT 2020}) 8. e4 {[%emt 0:00:11] And now e5 would win. White is slightly better.} ({Not} 8. Bxc7 d6 9. Ne4 (9. Nb5 $2 a6 $19) 9... Rc8 10. Nxf6+ gxf6 $17) 8... e5 {[%emt 0:00:36] [#] White must now prevent ...Bxc3.} 9. Nd5 {[%emt 0:00:45]} (9. Bg5 $11 {is more appropriate.} Bxc3 10. bxc3) 9... Nxd5 $15 {[%emt 0:00:05]} 10. exd5 {[%emt 0:00:01]} exf4 {[%emt 0:00:10]} 11. dxc6 {[%emt 0:00:04]} dxc6 {[%emt 0:00:55]} (11... Bxc6 {simplifies} 12. d5 Bb7 13. Nxf4 O-O-O) 12. Nxf4 {[%emt 0:00:09]} O-O-O {[%emt 0:00:02]} 13. Bc4 {[%emt 0:00:22]} Qf6 $36 {[%emt 0:00:10][%mdl 2048] Black is pushing.} 14. Qg4+ {[%emt 0:00:09]} Kb8 {[%emt 0:00:01]} 15. Nh5 {[%emt 0:00:05][%csl LRf6,LRg7]} Qh6+ {[%emt 0:00:01]} 16. Kb1 {[%emt 0:00:02]} f5 {[%emt 0:00:08] Against h4} 17. Qf3 {[%emt 0:00:10]} (17. Qxf5 $2 {too greedy.} g6 18. Qf3 gxh5 $19) 17... Rhe8 {[%emt 0:00:10]} 18. Ng3 {[%emt 0:00:31]} g6 {[%emt 0:00:02]} 19. c3 {[%emt 0:00:04]} Bd6 {[%emt 0:00:04]} 20. h4 {[%emt 0:00:19]} Qf4 {[%emt 0:00:08]} ({Black should play} 20... c5 $17 21. d5 a6) 21. Qxf4 $11 {[%emt 0:00:03]} Bxf4 {[%emt 0:00:01]} 22. h5 {[%emt 0:00:00]} (22. Ne2 $5 {[%cal Re2f4]} Bd6 23. f3 $15) 22... Re7 {[%emt 0:00:11]} ({Better is} 22... Bxg3 $15 23. fxg3 Re3) 23. hxg6 {[%emt 0:00:06]} hxg6 {[%emt 0:00:01][%cal Bh7g6,Bg6g5,Bg5g4][%mdl 32]} 24. Ne2 {[%emt 0:00:02]} Bd6 {[%emt 0:00:06]} 25. Rh6 {[%emt 0:00:01]} g5 {[%emt 0:00:10]} 26. Rg6 {[%emt 0:00:16]} g4 {[%emt 0:00:05]} 27. Rf6 {[%emt 0:00:04]} Bc8 {[%emt 0:00:02]} 28. Bd3 {[%emt 0:00:06]} c5 {[%emt 0:00:06][%mdl 32768] Weighted Error Value: White=0.13 (very precise) /Black=0.12 (very precise) . Loss on time!?} 1-0

[Event "Romanian Team Blitz Open 2022"]
[Site "Sebes"]
[Date "2022.12.04"]
[Round "3.11"]
[White "Grecescu, Gabriel-Andrei"]
[Black "Butolo, Alexandru-Mircea"]
[Result "1-0"]
[ECO "A13"]
[WhiteElo "2388"]
[BlackElo "2043"]
[Annotator "TA"]
[PlyCount "75"]
[EventDate "2022.12.04"]
[EventType "blitz"]
[EventCountry "ROU"]
[SourceTitle "playchess.com"]
[Source "ChessBase"]
[SourceQuality "1"]
[TimeControl "180+2"]

{[%evp 9,75,11,12,-44,0,0,1,7,25,25,21,32,19,-79,-29,-47,0,-15,-13,-15,-12,-46,-45,-61,-41,-39,-33,-80,46,-43,-62,-62,-39,-60,22,0,6,0,0,0,26,0,0,0,45,0,4,0,14,17,272,260,256,265,548,559,551,542,547,491,925,923,1114,1046,1018,1010,1005,995]} 1. c4 {[%emt 0:00:01]} Nf6 {[%emt 0:00:01]} 2. Nf3 {[%emt 0:00:01]} e6 {[%emt 0:00:02]} 3. e3 {[%emt 0:00:02]} b6 {[%emt 0:00:06]} 4. b3 {[%emt 0:00:02]} Bb7 {[%emt 0:00:02]} 5. Bb2 {[%emt 0:00:01]} Be7 {[%emt 0:00:04]} 6. g4 {[%emt 0:00:07] A13: English Opening: 1...e6.} (6. Nc3 $11) 6... h6 {[%emt 0:00:51]} (6... Nxg4 $5 {[%cal Re7h4]} 7. Rg1 Bf6 $11) 7. Rg1 {[%emt 0:00:01]} d5 {[%emt 0:00:22]} 8. h4 {[%emt 0:00:01] [#] The position is equal.} Nbd7 $146 {[%emt 0:00:17]} ({Predecessor:} 8... Rg8 9. g5 hxg5 10. hxg5 Ne4 11. g6 f5 12. cxd5 Bxd5 13. Nc3 Nxc3 14. Bxc3 Nd7 {1-0 (67) Srinath,R (2355)-Guindy,E (2146) Aarhus 2018}) 9. g5 {[%emt 0:00:09]} hxg5 {[%emt 0:00:20]} 10. hxg5 {[%emt 0:00:01]} Ne4 {[%emt 0:00:03]} 11. g6 {[%emt 0:00:13]} (11. cxd5 $11 {remains equal.} Bxd5 12. Bxg7) 11... f6 {[%emt 0:00:17]} (11... fxg6 $1 $17 {And now ...dxc4 would win.} 12. Nc3 c5) 12. Qc2 {[%emt 0:00:07]} c5 {[%emt 0:00:17] Against Nd4} (12... Nf8 $15) 13. Be2 {[%emt 0:00:05]} Qc7 {[%emt 0:00:05][%cal Od5d4]} 14. d3 {[%emt 0:00:24] Inhibits d4.} Nd6 {[%emt 0:00:01]} 15. Nc3 {[%emt 0:00:04]} O-O-O {[%emt 0:00:07]} 16. O-O-O {[%emt 0:00:02]} a6 {[%emt 0:00:02]} 17. cxd5 {[%emt 0:00:07]} exd5 {[%emt 0:00:02]} 18. d4 {[%emt 0:00:01] [#]} (18. Kb1 $15 {might be stronger.}) 18... Ne4 {[%emt 0:00:05] [#]} (18... c4 $1 $17) 19. Bd3 {[%emt 0:00:22]} (19. Bxa6 $1 $14 Nxc3 20. Bxb7+ Kxb7 21. Bxc3 (21. Qxc3 Rh3 $14)) 19... Nxc3 $15 {[%emt 0:00:04]} 20. Bxc3 {[%emt 0:00:02]} c4 {[%emt 0:00:03]} 21. Bf5 {[%emt 0:00:03]} cxb3 {[%emt 0:00:06]} ({Black should play} 21... b5 $15) 22. axb3 {[%emt 0:00:03]} Kb8 {[%emt 0:00:05]} 23. Bb2 {[%emt 0:00:21]} Qd6 {[%emt 0:00:07] Threatens to win with ...Rc8.} 24. Kb1 {[%emt 0:00:02]} Rc8 {[%emt 0:00:04]} 25. Qd2 {[%emt 0:00:04]} Rc7 {[%emt 0:00:04]} 26. Rc1 {[%emt 0:00:08]} Rhc8 {[%emt 0:00:02]} 27. Rxc7 {[%emt 0:00:02] Active counter play!} Rxc7 {[%emt 0:00:01]} 28. Rh1 {[%emt 0:00:03]} Ka7 {[%emt 0:00:03]} 29. Ne1 {[%emt 0:00:06][%cal Bf3e1,Be1d3,Bd3f4,Bf4e6,Be6g7][%mdl 32]} (29. Rh8 {seems wilder.} Nf8 30. Ne1 Bc8 31. Bxc8 Rxc8 32. Rg8) 29... Qb4 $2 {[%emt 0:00:06][%mdl 8192] Black cannot hold the game after this.} (29... Bc8 $11 {and Black stays safe.}) 30. Qxb4 $18 {[%emt 0:00:02]} Bxb4 {[%emt 0:00:01]} 31. Nd3 {[%emt 0:00:02]} Bf8 {[%emt 0:00:01]} (31... Bd6 {was worth a try.} 32. Ka2 Bc8) 32. Rh8 {[%emt 0:00:03] White is clearly winning.} Bd6 {[%emt 0:00:04]} 33. Rg8 {[%emt 0:00:11]} Nf8 {[%emt 0:00:03]} 34. Nf4 {[%emt 0:00:02]} Re7 {[%emt 0:00:03]} (34... Nxg6 $142 35. Nxg6 a5) 35. Rxf8 {[%emt 0:00:04]} Rxe3 {[%emt 0:00:08]} 36. fxe3 {[%emt 0:00:01] White wants to mate with Rg8.} Bxf8 {[%emt 0:00:01]} 37. Ne6 {[%emt 0:00:02]} Bd6 {[%emt 0:00:02]} 38. Nxg7 {[%emt 0:00:01] Weighted Error Value: White=0.20 (precise) /Black=0.44} 1-0

[Event "Romanian Team Blitz Open 2022"]
[Site "Sebes"]
[Date "2022.12.04"]
[Round "3.12"]
[White "Prelipcean, Eric-Matei"]
[Black "Cnejev, Vladimir-Alexandru"]
[Result "0-1"]
[ECO "C91"]
[WhiteElo "1909"]
[BlackElo "2293"]
[Annotator "TA"]
[PlyCount "66"]
[EventDate "2022.12.04"]
[EventType "blitz"]
[EventCountry "ROU"]
[SourceTitle "playchess.com"]
[Source "ChessBase"]
[SourceQuality "1"]
[TimeControl "180+2"]

{[%evp 19,66,27,49,49,54,49,50,43,72,46,43,0,0,0,0,0,0,0,0,-27,-29,-42,-16,-154,-160,-379,-366,-424,-404,-400,-357,-481,-372,-365,-325,-474,-283,-858,-853,-781,-645,-645,-375,-1053,-1025,-1042,-958,-1258,-1214]} 1. e4 {[%emt 0:00:01]} e5 {[%emt 0:00:01]} 2. Nf3 {[%emt 0:00:01]} Nc6 {[%emt 0:00:01]} 3. Bb5 {[%emt 0:00:01][%cal Bf1b5,Bb5a4,Ba4b3][%mdl 32]} a6 {[%emt 0:00:01]} 4. Ba4 {[%emt 0:00:00]} b5 {[%emt 0:00:00]} 5. Bb3 {[%emt 0:00:01]} Bb7 {[%emt 0:00:02]} 6. O-O {[%emt 0:00:02]} Be7 {[%emt 0:00:01]} 7. c3 {[%emt 0:00:02]} Nf6 {[%emt 0:00:01]} 8. Re1 {[%emt 0:00:00]} O-O {[%emt 0:00:02]} 9. d4 {[%emt 0:00:01]} d6 {[%emt 0:00:01]} 10. Nbd2 {[%emt 0:00:01][%cal Bb1d2,Bd2f1,Bf1g3][%mdl 32]} h6 {[%emt 0:00:01]} 11. Bc2 {[%emt 0:00:05] C91: Closed Ruy Lopez: 7...d6 8 c3 0-0 9 d4.} Re8 {[%emt 0:00:02]} 12. Nf1 {[%emt 0:00:01]} Bf8 {[%emt 0:00:02]} 13. Ng3 {[%emt 0:00:00] White is slightly better.} g6 {[%emt 0:00:41]} 14. a4 {[%emt 0:00:10]} Bg7 {[%emt 0:00:15] [#]} 15. b3 $146 {[%emt 0:00:42]} ({Predecessor:} 15. Bd3 exd4 16. axb5 axb5 17. Rxa8 Qxa8 18. cxd4 Qa4 19. b3 Qa6 20. Bd2 Nd7 21. Qe2 {½-½ (54) Lakatos,S (2399)-Mueller,G (2600) ICCF email 2008}) 15... exd4 {[%emt 0:00:27]} 16. cxd4 {[%emt 0:00:02]} Nb4 {[%emt 0:00:02]} 17. Bb1 {[%emt 0:00:05]} c5 {[%emt 0:01:56]} 18. Bb2 bxa4 {[%emt 0:00:00]} 19. bxa4 {[%emt 0:01:07]} a5 {[%emt 0:00:00]} 20. Bc3 {[%emt 0:00:26]} Rc8 {[%emt 0:00:00]} 21. Bxb4 (21. Ra3 $1 $11 {keeps the balance.}) 21... axb4 $17 {[%emt 0:00:00]} 22. dxc5 $2 {[%emt 0:00:47] [#]} (22. a5 $17) 22... dxc5 $19 {[%emt 0:00:00] Threatens to win with ...Qxd1.} 23. e5 {[%emt 0:00:02]} Qxd1 {[%emt 0:00:00]} 24. Rxd1 {[%emt 0:00:01]} Ng4 {[%emt 0:00:00]} 25. Bd3 {[%emt 0:00:05]} Nxe5 {[%emt 0:00:00]} (25... Bxe5 $2 {perishes.} 26. Nxe5 Nxe5 27. Bb5 $17) 26. Nxe5 Bxe5 {This pair of bishops is nice.} (26... Rxe5 $2 {too greedy.} 27. Rab1 $19) 27. Rac1 (27. Rab1 {was the only defense.}) 27... Red8 {[%emt 0:00:00]} (27... b3 $142 28. Bb5 Red8) 28. Ne2 $2 {[%emt 0:00:04]} (28. Bc4) 28... c4 {[%emt 0:00:00]} 29. Bb1 {[%emt 0:00:01]} Rxd1+ {[%emt 0:00:00]} 30. Rxd1 {[%emt 0:00:01]} c3 {[%emt 0:00:00]} 31. Rc1 $2 {[%emt 0:00:00]} (31. Bc2) 31... b3 {[%emt 0:00:00][%cal Bb4b3,Bb3b2][%mdl 32] [#] aiming for ...b2. Black is clearly winning.} 32. f4 {[%emt 0:00:07]} Bf6 {[%emt 0:00:01] White must now prevent ...c2.} 33. Bd3 {[%emt 0:00:09]} b2 {[%emt 0:00:07] Weighted Error Value: White=1.03/Black=0.47} 0-1

[Event "Romanian Team Blitz Open 2022"]
[Site "Sebes"]
[Date "2022.12.04"]
[Round "3.13"]
[White "Stefan, Romulus-Cristian"]
[Black "Anton, Teodor"]
[Result "1/2-1/2"]
[ECO "A46"]
[WhiteElo "2097"]
[BlackElo "2438"]
[Annotator "TA"]
[PlyCount "35"]
[EventDate "2022.12.04"]
[EventType "blitz"]
[EventCountry "ROU"]
[SourceTitle "playchess.com"]
[Source "ChessBase"]
[SourceQuality "1"]
[TimeControl "180+2"]

{[%evp 10,35,60,66,39,54,143,152,160,160,180,181,184,179,190,174,184,185,199,187,214,139,150,0,206,0,122,0]} 1. d4 {[%emt 0:00:01]} Nf6 {[%emt 0:00:01]} 2. Nf3 {[%emt 0:00:03]} e6 {[%emt 0:00:04]} 3. Bg5 {[%emt 0:00:01]} c5 {[%emt 0:00:05]} 4. e3 {[%emt 0:00:02]} b6 {[%emt 0:00:03]} 5. d5 {[%emt 0:00:21]} exd5 {[%emt 0:00:06]} 6. Nc3 {[%emt 0:00:01]} Be7 {[%emt 0:00:12] A46: 1 d4 Nf6 2 Nf3 e6: Torre, London and Colle Systems.} 7. Nxd5 {[%emt 0:00:07]} Nxd5 {[%emt 0:00:02]} (7... Bb7 $14 8. Bc4 O-O) 8. Qxd5 $16 {[%emt 0:00:01]} Nc6 {[%emt 0:00:03] White is clearly better.} 9. O-O-O {[%emt 0:00:15] [#]} Bxg5 $146 {[%emt 0:00:12]} ({Predecessor:} 9... O-O 10. Bb5 Qe8 11. h4 h6 12. Bf4 Bf6 13. g4 a6 14. Bd3 Qe6 15. Qe4 Qxe4 16. Bxe4 {1-0 (54) Annaberdiev,M (2457)-Adianto,U (2589) Doha 2006}) 10. Nxg5 {[%emt 0:00:03][%csl Gg5][%cal Rd5f7]} O-O {[%emt 0:00:11]} 11. Bc4 {[%emt 0:00:26][%cal Rg5f7]} Qe7 {[%emt 0:00:15]} 12. Qf5 {[%emt 0:00:20][%csl Gg5][%cal Rf5h7]} g6 {[%emt 0:00:03]} 13. Qf4 {[%emt 0:00:04]} Kg7 {[%emt 0:00:32] [#]} 14. h4 $1 {[%emt 0:00:05]} (14. Qh4 h6 15. Nf3 Qxh4 16. Nxh4 Ne5 $14) 14... Qe5 {[%emt 0:00:14]} 15. Qf3 {[%emt 0:00:16] And now Rd5 would win.} ({Worse is} 15. Nxf7 Qxf4 16. exf4 Rxf7 17. Bxf7 Kxf7 $11) 15... Qe7 {[%emt 0:00:16]} 16. Qf4 {[%emt 0:00:06] White has more active pieces. The black rooks are badly placed.} (16. Qg3 $16) 16... Qe5 $18 {[%emt 0:00:07] [#]} 17. Qf3 {[%emt 0:00:02]} ({Stronger than} 17. Nxf7 Qxf4 18. exf4 Rxf7 19. Bxf7 Kxf7 $11) (17. h5 $1 $18 {[%cal Rh5g6] Strongly threatening hxg6.} Qxf4 18. exf4) 17... Qe7 $1 $16 {[%emt 0:00:01]} 18. Qf4 {[%emt 0:01:24] Weighted Error Value: White=0.51/Black=0.12 (very precise)} ({White should play} 18. Qg3 $16) 1/2-1/2

[Event "Romanian Team Blitz Open 2022"]
[Site "Sebes"]
[Date "2022.12.04"]
[Round "3.14"]
[White "David, Alexandru-Vasile"]
[Black "Arion, Ilie"]
[Result "1-0"]
[ECO "A57"]
[WhiteElo "2404"]
[BlackElo "1924"]
[Annotator "TA"]
[PlyCount "71"]
[EventDate "2022.12.04"]
[EventType "blitz"]
[EventCountry "ROU"]
[SourceTitle "playchess.com"]
[Source "ChessBase"]
[SourceQuality "1"]
[TimeControl "180+2"]

{[%evp 9,71,30,33,14,26,18,14,15,14,0,19,0,0,2,7,-4,7,-14,0,-12,7,0,46,-6,49,27,25,27,33,23,62,52,61,56,62,72,68,52,50,54,56,54,120,122,250,235,248,239,262,248,560,244,393,406,1010,763,754,758,754,743,729,717,1092,1083]} 1. d4 {[%emt 0:00:02]} Nf6 {[%emt 0:00:01]} 2. c4 {[%emt 0:00:01]} c5 {[%emt 0:00:00]} 3. d5 {[%emt 0:00:02]} b5 {[%emt 0:00:01]} 4. Qc2 {[%emt 0:00:06]} b4 {[%emt 0:00:01]} 5. e4 {[%emt 0:00:03]} d6 {[%emt 0:00:02]} 6. Bd3 {[%emt 0:00:05] A57: Benko/Volga Gambit.} g6 {[%emt 0:00:01]} 7. Ne2 {[%emt 0:00:07] 7.Nf3 is a critical line.} Bg7 {[%emt 0:00:01]} 8. O-O {[%emt 0:00:02] The position is equal.} O-O {[%emt 0:00:02]} 9. Nd2 {[%emt 0:00:04] [#]} e6 $146 {[%emt 0:00:01]} ({Predecessor:} 9... Nbd7 10. f4 a5 11. a4 e6 12. Nf3 exd5 13. exd5 Re8 14. h3 Rb8 15. Bd2 Ba6 {½-½ (44) Koneru,H (2586)-Zuriel,M (2174) Chennai 2022}) 10. Ng3 {[%emt 0:00:05]} exd5 {[%emt 0:00:03]} 11. cxd5 {[%emt 0:00:07]} Nbd7 {[%emt 0:00:04]} 12. Nc4 {[%emt 0:02:42]} Nb6 13. Bf4 {[%emt 0:00:00]} Nxc4 {[%emt 0:00:04]} 14. Bxc4 {[%emt 0:00:00]} Re8 {[%emt 0:00:05]} 15. Rad1 {[%emt 0:00:00][%cal Oe4e5]} a5 {[%emt 0:00:02]} (15... Ng4 $11 {is superior.}) 16. Rfe1 {[%emt 0:00:00]} ({White should play} 16. e5 $14 dxe5 17. Bg5) 16... Bb7 {[%emt 0:00:17]} (16... Ng4 $1 $11) 17. h3 $36 {[%emt 0:00:00][%mdl 2048] White is more active.} (17. Bb5 $5 {[%cal Rb5e8]}) 17... Qc7 {[%emt 0:00:09]} 18. Nf1 {[%emt 0:00:00][%cal Bg3f1,Bf1e3,Be3c4][%mdl 32]} Nd7 {[%emt 0:00:01]} 19. Ne3 {[%emt 0:00:00]} Ne5 {[%emt 0:00:02]} 20. Bb5 {[%emt 0:00:00]} Rf8 {[%emt 0:00:16]} 21. Bh2 {[%emt 0:00:00]} Ba6 {[%emt 0:00:01]} 22. Bxa6 {[%emt 0:00:00] White is more active.} Rxa6 {[%emt 0:00:01]} 23. f4 {[%emt 0:00:00] Prevents a4.} Nd7 {[%emt 0:00:03]} 24. Nc4 {[%emt 0:00:00]} Bd4+ {[%emt 0:00:16]} 25. Kh1 {[%emt 0:00:00]} Qb7 {[%emt 0:00:07]} (25... Nb6 $14) 26. Bg1 {[%emt 0:00:00]} Bg7 {[%emt 0:00:15] This move loses the game for Black.} (26... Bxg1 $16 {was worth a try.} 27. Kxg1 (27. Rxg1 f6 $14) 27... f6) 27. e5 $18 {[%emt 0:00:00]} dxe5 {[%emt 0:00:24]} 28. fxe5 {[%emt 0:00:00] [#] Hoping for e6.} Re8 {[%emt 0:00:01] Inhibits e6.} 29. Bh2 {[%emt 0:00:00]} Re7 $2 {[%emt 0:00:32]} (29... a4 {is more resistant.} 30. Nd6 b3 31. axb3 axb3) 30. Qf2 {[%emt 0:00:00]} (30. e6 $142) 30... Qb5 {[%emt 0:00:07]} (30... Nf8 $142 31. Qxc5 Rc7) 31. Nd6 {[%emt 0:00:00]} Qb6 {[%emt 0:00:08]} (31... Rxd6 $142 32. exd6 Rxe1+ 33. Rxe1 Bf6) 32. Nc8 {[%emt 0:00:00] White is clearly winning.} Qd8 {[%emt 0:00:01]} 33. Nxe7+ {[%emt 0:00:00]} Qxe7 {[%emt 0:00:01]} 34. e6 {[%emt 0:00:04]} fxe6 {[%emt 0:00:09]} 35. Qe2 {[%emt 0:00:06]} e5 {[%emt 0:00:02]} 36. Qxa6 {[%emt 0:00:38] Weighted Error Value: White=0.24 (precise) /Black=0.37} 1-0

[Event "Romanian Team Blitz Open 2022"]
[Site "Sebes"]
[Date "2022.12.04"]
[Round "3.15"]
[White "Craciun, Ovidiu"]
[Black "Ghimpu, Samuel-Timotei"]
[Result "0-1"]
[ECO "B06"]
[WhiteElo "1857"]
[BlackElo "2455"]
[Annotator "TA"]
[PlyCount "52"]
[EventDate "2022.12.04"]
[EventType "blitz"]
[EventCountry "ROU"]
[SourceTitle "playchess.com"]
[Source "ChessBase"]
[SourceQuality "1"]
[TimeControl "180+2"]

{[%evp 11,52,33,54,50,49,14,18,9,35,7,16,0,0,-41,-31,-44,-22,-44,-9,-231,-232,-212,-140,-154,-137,-138,-90,-121,-122,-212,-228,-218,-211,-637,-634,-634,-633,-718,-625,-617,-610,-621,-606]} 1. e4 {[%emt 0:03:04]} g6 2. d4 {[%emt 0:00:02]} Bg7 {[%emt 0:03:06]} 3. Be3 {[%emt 0:00:02]} d6 {[%emt 0:00:02]} 4. Qd2 Nd7 {[%emt 0:00:02]} 5. h4 {[%emt 0:00:04]} h5 {[%emt 0:00:02]} 6. Nc3 {[%emt 0:00:02]} a6 7. Nh3 {[%emt 0:00:02] B06: Modern Defence.} b5 {[%emt 0:00:04]} 8. a3 {[%emt 0:00:02]} Bb7 {[%emt 0:00:02]} 9. f3 {[%emt 0:00:02] The position is equal.} c5 {[%emt 0:00:02]} 10. dxc5 {[%emt 0:00:02]} Nxc5 {[%emt 0:00:02] [#]} 11. Nf2 $146 {[%emt 0:00:02]} ({Predecessor:} 11. Bd4 Bxd4 12. Qxd4 e5 13. Qf2 Nf6 14. O-O-O Rc8 15. Bxb5+ axb5 16. Nxb5 d5 17. exd5 {0-1 (27) Lokesh,N (2255)-Sivuk,V (2566) New Delhi 2016}) 11... Rc8 {[%emt 0:00:02]} 12. Bd3 {[%emt 0:00:02]} Nf6 {[%emt 0:00:02][%cal Bg8f6,Bf6d7,Bd7e5,Be5c4][%mdl 32]} 13. Rd1 {[%emt 0:00:02]} Nfd7 {[%emt 0:00:02]} 14. Be2 {[%emt 0:00:02]} Ne5 {[%emt 0:00:02]} 15. Nd3 $2 {[%emt 0:00:02]} (15. f4 $11 Ned7 16. O-O) 15... Nc4 $19 {[%emt 0:00:02]} 16. Qc1 {[%emt 0:00:02]} Nxd3+ {[%emt 0:00:02]} 17. Rxd3 {[%emt 0:00:02] [#]} Nxa3 $1 {[%emt 0:00:02][%mdl 512] Black is more active.} 18. Bd4 {[%emt 0:00:02]} e5 {[%emt 0:00:02]} (18... Bxd4 $142 19. Rxd4 O-O) 19. Be3 {[%emt 0:00:02] Against Qb6} Nc4 $36 {[%emt 0:00:02][%mdl 2048] Black is really pushing.} 20. b3 {[%emt 0:00:02]} (20. Bg5 $17 f6 21. Bd2) 20... Nxe3 {[%emt 0:00:02]} 21. Qxe3 Bh6 {[%emt 0:00:02]} 22. Qf2 {[%emt 0:00:04] [#]} (22. Qa7 Rc7 23. Qb6) 22... Qa5 {[%emt 0:00:02] Black is clearly winning.} 23. O-O {[%emt 0:00:02]} Rxc3 {[%emt 0:00:02]} 24. Qa7 {[%emt 0:00:02]} Rxd3 {[%emt 0:00:02]} 25. Bxd3 {[%emt 0:00:02]} Qc7 {[%emt 0:00:02]} 26. Kh2 {[%emt 0:00:02]} O-O {[%emt 0:00:02] Weighted Error Value: White=0.69/Black=0.24 (precise)} 0-1

[Event "Romanian Team Blitz Open 2022"]
[Site "Sebes"]
[Date "2022.12.04"]
[Round "3.16"]
[White "Talu, Mircea"]
[Black "Stefan, Iulia-Cristiana"]
[Result "1-0"]
[ECO "A26"]
[WhiteElo "2327"]
[BlackElo "1662"]
[Annotator "TA"]
[PlyCount "61"]
[EventDate "2022.12.04"]
[EventType "blitz"]
[EventCountry "ROU"]
[SourceTitle "playchess.com"]
[Source "ChessBase"]
[SourceQuality "1"]
[TimeControl "180+2"]

{[%evp 12,61,24,9,18,21,39,25,38,17,45,14,95,60,187,186,190,202,172,189,194,174,202,193,188,155,216,220,220,171,453,441,766,725,755,750,721,733,2268,2261,2112,2035,29986,29987,29991,29990,29992,29993,29995,29996,29997,29995]} 1. Nf3 {[%emt 0:00:01]} g6 {[%emt 0:00:01]} 2. g3 {[%emt 0:00:02]} Bg7 {[%emt 0:00:02]} 3. Bg2 {[%emt 0:00:01]} e5 {[%emt 0:00:02]} 4. d3 {[%emt 0:00:15]} Nc6 {[%emt 0:00:11]} 5. c4 {[%emt 0:00:03]} d6 {[%emt 0:00:02]} 6. Nc3 {[%emt 0:00:02]} Nh6 {[%emt 0:00:01]} 7. O-O {[%emt 0:00:07]} O-O {[%emt 0:00:02] A26: English Opening vs King's Indian with ...Nc6 and d3.} 8. Rb1 {[%emt 0:00:08]} f5 {[%emt 0:00:03]} 9. b4 {[%emt 0:00:40][%cal Bb2b4,Bb4b5][%mdl 32] [#]} Qd7 $146 {[%emt 0:00:56] White has an edge.} ({Predecessor:} 9... Nf7 10. b5 Ne7 11. Qb3 h6 12. Ne1 g5 13. a4 Rb8 14. Nc2 Be6 15. Be3 b6 {0-1 (40) Lomakina,G (2089)-Ipatov,A (2486) Voronezh 2009}) 10. b5 {[%emt 0:00:15]} Nd8 {[%emt 0:00:01]} 11. Ng5 {[%emt 0:00:24]} f4 {[%emt 0:00:09]} (11... Nhf7 $11) 12. e3 $36 {[%emt 0:00:40][%cal Re3f4][%mdl 2048] White has some pressure. White is more active.} Kh8 {[%emt 0:00:18]} ({Better is} 12... Ndf7 $14 13. Nge4 (13. gxf4 exf4 14. Nge4 fxe3 $11) 13... fxg3) 13. exf4 $18 {[%emt 0:00:07]} Nf5 {[%emt 0:00:23]} 14. fxe5 {[%emt 0:00:03]} dxe5 {[%emt 0:00:01]} 15. Nd5 {[%emt 0:00:17][%cal Bc3d5,Bd5e3,Be3g4,Bg4e5][%mdl 32]} c6 {[%emt 0:00:15]} 16. Ne3 {[%emt 0:00:02]} Nd4 {[%emt 0:00:04]} 17. bxc6 {[%emt 0:00:02]} bxc6 {[%emt 0:00:01]} 18. Bb2 {[%emt 0:00:05]} N8e6 {[%emt 0:00:06]} (18... Rb8 $16 19. Ba3 Rxb1 20. Qxb1 Re8) 19. Nxe6 {[%emt 0:00:01]} Nxe6 {[%emt 0:00:02]} 20. Re1 {[%emt 0:00:07] Black must now prevent Ng4.} Rd8 $2 {[%emt 0:00:12] [#]} (20... Qc7 21. Bc3 Nd4) 21. Ng4 {[%emt 0:00:02]} Nd4 {[%emt 0:00:21]} (21... e4 $142 22. Ne5 Bxe5) 22. Nxe5 {[%emt 0:00:04]} Qc7 {[%emt 0:00:07]} 23. Bxd4 {[%emt 0:00:03]} Rxd4 {[%emt 0:00:03]} 24. Nxc6 {[%emt 0:00:02] [#] And now Re8+ would win.} Rd8 {[%emt 0:00:13] Inhibits Re8+.} 25. Nxd8 {[%emt 0:00:02]} Qxd8 {[%emt 0:00:01]} 26. Bxa8 {[%emt 0:00:02] White wants to mate with Bc6.} Bh3 {[%emt 0:00:04]} 27. Qf3 {[%emt 0:00:04] White mates.} h6 {[%emt 0:00:02]} 28. Bd5 {[%emt 0:00:02]} Kh7 {[%emt 0:00:05]} 29. Qf7 {[%emt 0:00:03]} Qc8 {[%emt 0:00:05]} 30. Rb7 {[%emt 0:00:03][%csl Gb7][%cal Rf7g7]} Qh8 {[%emt 0:00:02]} 31. Ree7 {[%emt 0:00:04] Black got outplayed after the opening.   Weighted Error Value: White=0.09 (flawless) /Black=0.64} 1-0